[Event "Titled Tuesday Blitz May 30 Early 2023"]
[White "Yurasova, Daria"]
[Black "Koridze, Lile"]
[WhiteFideId "34146919"]
[BlackFideId "13612514"]
[WhiteElo "2109"]
[BlackElo "2047"]
[Result "1-0"]
[Round "09"]
[TimeControl "180+2"]
[Date "2023.05.30"]
[WhiteClock "0:00:16"]
[BlackClock "0:00:58"]

1. d4 {[%clk 0:03:00]}  Nf6 {[%clk 0:02:59]} 2. Bg5 {[%clk 0:03:00]}  e6 {[%clk 0:02:57]} 3. e4 {[%clk 0:03:00]}  Be7 {[%clk 0:02:56]} 4. Nd2 {[%clk 0:02:59]}  d6 {[%clk 0:02:57]} 5. Bd3 {[%clk 0:02:58]}  Nbd7 {[%clk 0:02:56]} 6. Ne2 {[%clk 0:02:58]}  e5 {[%clk 0:02:56]} 7. O-O {[%clk 0:02:55]}  exd4 {[%clk 0:02:55]} 8. Nxd4 {[%clk 0:02:55]}  O-O {[%clk 0:02:55]} 9. Nf5 {[%clk 0:02:54]}  Ne5 {[%clk 0:02:54]} 10. Nxe7+ {[%clk 0:02:54]}  Qxe7 {[%clk 0:02:55]} 11. Be2 {[%clk 0:02:34]}  h6 {[%clk 0:02:54]} 12. Bh4 {[%clk 0:02:33]}  g5 {[%clk 0:02:52]} 13. Bg3 {[%clk 0:02:33]}  Ng6 {[%clk 0:02:52]} 14. Bd3 {[%clk 0:02:32]}  Kg7 {[%clk 0:02:50]} 15. Kh1 {[%clk 0:02:31]}  Ng4 {[%clk 0:02:45]} 16. Nc4 {[%clk 0:02:15]}  N4e5 {[%clk 0:02:35]} 17. Ne3 {[%clk 0:02:12]}  Nf4 {[%clk 0:02:19]} 18. Bxf4 {[%clk 0:02:07]}  gxf4 {[%clk 0:02:19]} 19. Nd5 {[%clk 0:01:44]}  Qh4 {[%clk 0:02:09]} 20. g3 {[%clk 0:01:14]}  Qh3 {[%clk 0:02:05]} 21. Nxf4 {[%clk 0:01:11]}  Qd7 {[%clk 0:02:04]} 22. Be2 {[%clk 0:01:08]}  f5 {[%clk 0:02:01]} 23. Nd3 {[%clk 0:00:44]}  fxe4 {[%clk 0:01:49]} 24. Nxe5 {[%clk 0:00:44]}  dxe5 {[%clk 0:01:50]} 25. Qxd7+ {[%clk 0:00:44]}  Bxd7 {[%clk 0:01:51]} 26. Kg1 {[%clk 0:00:40]}  Bc6 {[%clk 0:01:50]} 27. Rad1 {[%clk 0:00:35]}  Rad8 {[%clk 0:01:50]} 28. Bc4 {[%clk 0:00:32]}  b5 {[%clk 0:01:45]} 29. Bb3 {[%clk 0:00:32]}  a5 {[%clk 0:01:43]} 30. c3 {[%clk 0:00:32]}  Rd3 {[%clk 0:01:25]} 31. Bc2 {[%clk 0:00:31]}  Rdf3 {[%clk 0:01:25]} 32. Rde1 {[%clk 0:00:29]}  Rd8 {[%clk 0:01:11]} 33. Bxe4 {[%clk 0:00:28]}  Bxe4 {[%clk 0:01:11]} 34. Rxe4 {[%clk 0:00:29]}  Kf6 {[%clk 0:01:12]} 35. Re2 {[%clk 0:00:22]}  c5 {[%clk 0:01:09]} 36. Rfe1 {[%clk 0:00:20]}  Rd5 {[%clk 0:01:09]} 37. Kg2 {[%clk 0:00:21]}  Rf5 {[%clk 0:01:08]} 38. g4 {[%clk 0:00:17]}  Rf4 {[%clk 0:01:08]} 39. h3 {[%clk 0:00:18]}  b4 {[%clk 0:01:03]} 40. cxb4 {[%clk 0:00:16]}  cxb4 {[%clk 0:01:03]} 41. Kg3 {[%clk 0:00:16]}  Rd3+ {[%clk 0:01:02]} 42. Re3 {[%clk 0:00:16]}  Rd2 {[%clk 0:01:02]} 43. R1e2 {[%clk 0:00:16]}  Rd5 {[%clk 0:01:02]} 44. Rf3 {[%clk 0:00:14]}  Kg5 {[%clk 0:00:59]} 45. Rxe5+ {[%clk 0:00:12]}  Rxe5 {[%clk 0:00:59]} 46. Rxf4 {[%clk 0:00:13]}  Rd5 {[%clk 0:00:59]} 47. Rf5+ {[%clk 0:00:12]}  Rxf5 {[%clk 0:00:59]} 48. gxf5 {[%clk 0:00:13]}  Kxf5 {[%clk 0:00:59]} 49. f4 {[%clk 0:00:14]}  h5 {[%clk 0:00:59]} 50. Kf3 {[%clk 0:00:14]}  h4 {[%clk 0:00:58]} 51. Ke3 {[%clk 0:00:14]}  Ke6 {[%clk 0:00:58]} 52. Ke4 {[%clk 0:00:15]}  Kd6 {[%clk 0:00:57]} 53. Kf5 {[%clk 0:00:15]}  Kc5 {[%clk 0:00:57]} 54. Kg6 {[%clk 0:00:15]}  a4 {[%clk 0:00:57]} 55. f5 {[%clk 0:00:15]}  Kc4 {[%clk 0:00:57]} 56. f6 {[%clk 0:00:15]}  a3 {[%clk 0:00:58]} 57. bxa3 {[%clk 0:00:15]}  bxa3 {[%clk 0:00:59]} 58. f7 {[%clk 0:00:16]}  Kc3 {[%clk 0:01:00]} 59. f8=Q {[%clk 0:00:16]}  Kb2 {[%clk 0:00:58]} 60. Qf7 {[%clk 0:00:16]} 1-0


[Site "https://www.chess.com"]

[Event "Titled Tuesday Blitz May 30 Early 2023"]
[White "Kaganskiy, Gleb"]
[Black "LangesNasenhaar"]
[WhiteFideId "4132025"]
[WhiteElo "2165"]
[BlackElo "2479"]
[Result "0-1"]
[Round "09"]
[TimeControl "180+2"]
[Date "2023.05.30"]
[WhiteClock "0:00:09"]
[BlackClock "0:00:55"]

1. e4 {[%clk 0:02:50]}  d6 {[%clk 0:03:00]} 2. d4 {[%clk 0:02:49]}  Nf6 {[%clk 0:03:00]} 3. Nc3 {[%clk 0:02:49]}  Nbd7 {[%clk 0:03:01]} 4. Nf3 {[%clk 0:02:48]}  e5 {[%clk 0:03:01]} 5. Bc4 {[%clk 0:02:47]}  Be7 {[%clk 0:03:01]} 6. dxe5 {[%clk 0:02:46]}  dxe5 {[%clk 0:03:01]} 7. Bxf7+ {[%clk 0:02:46]}  Kxf7 {[%clk 0:03:01]} 8. Ng5+ {[%clk 0:02:47]}  Kg8 {[%clk 0:03:01]} 9. Ne6 {[%clk 0:02:48]}  Qe8 {[%clk 0:03:02]} 10. Nxc7 {[%clk 0:02:48]}  Qg6 {[%clk 0:03:03]} 11. Nxa8 {[%clk 0:02:47]}  Qxg2 {[%clk 0:03:00]} 12. Rf1 {[%clk 0:02:46]}  Nc5 {[%clk 0:02:53]} 13. Qe2 {[%clk 0:02:45]}  Bh3 {[%clk 0:02:31]} 14. Nc7 {[%clk 0:02:37]}  Qxf1+ {[%clk 0:02:25]} 15. Qxf1 {[%clk 0:02:38]}  Bxf1 {[%clk 0:02:26]} 16. Kxf1 {[%clk 0:02:39]}  Nfxe4 {[%clk 0:02:25]} 17. Nxe4 {[%clk 0:02:35]}  Nxe4 {[%clk 0:02:26]} 18. Be3 {[%clk 0:02:25]}  a6 {[%clk 0:02:22]} 19. Nd5 {[%clk 0:02:00]}  Kf7 {[%clk 0:02:12]} 20. Nxe7 {[%clk 0:01:55]}  Kxe7 {[%clk 0:02:12]} 21. f3 {[%clk 0:01:48]}  Nf6 {[%clk 0:02:09]} 22. c4 {[%clk 0:01:37]}  Rc8 {[%clk 0:02:05]} 23. b3 {[%clk 0:01:33]}  b5 {[%clk 0:02:04]} 24. cxb5 {[%clk 0:01:05]}  axb5 {[%clk 0:02:04]} 25. a4 {[%clk 0:01:06]}  bxa4 {[%clk 0:01:47]} 26. bxa4 {[%clk 0:01:07]}  Nd5 {[%clk 0:01:48]} 27. Bd2 {[%clk 0:00:52]}  Rc2 {[%clk 0:01:30]} 28. Ke1 {[%clk 0:00:52]}  Rc6 {[%clk 0:01:22]} 29. a5 {[%clk 0:00:48]}  Ra6 {[%clk 0:01:22]} 30. Rb1 {[%clk 0:00:45]}  Kd6 {[%clk 0:01:13]} 31. Rb7 {[%clk 0:00:43]}  Nc7 {[%clk 0:01:13]} 32. Rb6+ {[%clk 0:00:21]}  Rxb6 {[%clk 0:01:12]} 33. axb6 {[%clk 0:00:22]}  Nd5 {[%clk 0:01:06]} 34. Ba5 {[%clk 0:00:20]}  Kc6 {[%clk 0:01:04]} 35. Kf2 {[%clk 0:00:16]}  Nxb6 {[%clk 0:00:59]} 36. Ke3 {[%clk 0:00:09]}  Nc4+ {[%clk 0:00:55]} 37. Ke4 {[%clk 0:00:10]}  Nxa5 {[%clk 0:00:54]} 38. Kxe5 {[%clk 0:00:11]}  Kd7 {[%clk 0:00:55]} 39. f4 {[%clk 0:00:11]}  Ke7 {[%clk 0:00:55]} 40. f5 {[%clk 0:00:11]}  Nc6+ {[%clk 0:00:55]} 41. Kf4 {[%clk 0:00:11]}  Kf6 {[%clk 0:00:55]} 42. Kg4 {[%clk 0:00:09]}  Ne7 {[%clk 0:00:55]} 0-1


[Site "https://www.chess.com"]

[Event "Titled Tuesday Blitz May 30 Early 2023"]
[White "Zaksaite, Salomeja"]
[Black "Gurevich, Dmitry"]
[WhiteFideId "12801496"]
[BlackFideId "2000407"]
[WhiteElo "2059"]
[BlackElo "2506"]
[Result "0-1"]
[Round "09"]
[TimeControl "180+2"]
[Date "2023.05.30"]
[WhiteClock "0:00:00"]
[BlackClock "0:02:00"]

1. e4 {[%clk 0:01:45]}  c5 {[%clk 0:02:54]} 2. Nf3 {[%clk 0:01:45]}  d6 {[%clk 0:02:54]} 3. d4 {[%clk 0:01:45]}  cxd4 {[%clk 0:02:54]} 4. Nxd4 {[%clk 0:01:46]}  Nf6 {[%clk 0:02:54]} 5. Nc3 {[%clk 0:01:46]}  Nc6 {[%clk 0:02:54]} 6. Bc4 {[%clk 0:01:43]}  e6 {[%clk 0:02:54]} 7. Bb3 {[%clk 0:01:42]}  a6 {[%clk 0:02:54]} 8. Be3 {[%clk 0:01:41]}  Na5 {[%clk 0:02:46]} 9. Qe2 {[%clk 0:01:37]}  Qc7 {[%clk 0:02:42]} 10. O-O-O {[%clk 0:01:34]}  b5 {[%clk 0:02:42]} 11. f3 {[%clk 0:01:25]}  Nxb3+ {[%clk 0:02:41]} 12. axb3 {[%clk 0:01:24]}  b4 {[%clk 0:02:39]} 13. Na4 {[%clk 0:01:24]}  Nd7 {[%clk 0:02:39]} 14. f4 {[%clk 0:01:16]}  Nc5 {[%clk 0:02:39]} 15. f5 {[%clk 0:01:05]}  e5 {[%clk 0:02:30]} 16. Ne6 {[%clk 0:00:24]}  fxe6 {[%clk 0:02:23]} 17. Qh5+ {[%clk 0:00:22]}  Qf7 {[%clk 0:02:19]} 18. Qh3 {[%clk 0:00:03]}  Nxa4 {[%clk 0:02:14]} 19. bxa4 {[%clk 0:00:02]}  exf5 {[%clk 0:02:13]} 20. exf5 {[%clk 0:00:00]}  Bxf5 {[%clk 0:02:00]} 0-1


[Site "https://www.chess.com"]

[Event "Titled Tuesday Blitz May 30 Early 2023"]
[White "Erzhanov, Arman"]
[Black "Cupid, Kevin"]
[WhiteFideId "4138821"]
[BlackFideId "7700512"]
[WhiteElo "2138"]
[BlackElo "2124"]
[Result "1-0"]
[Round "09"]
[TimeControl "180+2"]
[Date "2023.05.30"]
[WhiteClock "0:02:23"]
[BlackClock "0:01:06"]

1. e4 {[%clk 0:03:00]}  c6 {[%clk 0:03:00]} 2. d4 {[%clk 0:02:59]}  d5 {[%clk 0:03:01]} 3. exd5 {[%clk 0:03:00]}  cxd5 {[%clk 0:03:01]} 4. c4 {[%clk 0:03:00]}  Nf6 {[%clk 0:03:01]} 5. Nc3 {[%clk 0:03:01]}  Nc6 {[%clk 0:03:02]} 6. Nf3 {[%clk 0:03:01]}  Bg4 {[%clk 0:03:02]} 7. cxd5 {[%clk 0:03:00]}  Nxd5 {[%clk 0:03:02]} 8. Qb3 {[%clk 0:03:01]}  Bxf3 {[%clk 0:03:02]} 9. gxf3 {[%clk 0:03:01]}  e6 {[%clk 0:03:02]} 10. Qxb7 {[%clk 0:03:00]}  Nxd4 {[%clk 0:03:03]} 11. Bb5+ {[%clk 0:03:00]}  Nxb5 {[%clk 0:03:03]} 12. Qc6+ {[%clk 0:03:00]}  Ke7 {[%clk 0:03:04]} 13. Qc5+ {[%clk 0:03:01]}  Kf6 {[%clk 0:02:33]} 14. Ne4+ {[%clk 0:02:56]}  Kf5 {[%clk 0:02:30]} 15. Qxb5 {[%clk 0:02:49]}  Bb4+ {[%clk 0:02:28]} 16. Kf1 {[%clk 0:02:47]}  Qc7 {[%clk 0:01:36]} 17. Rg1 {[%clk 0:02:35]}  f6 {[%clk 0:01:31]} 18. Qd3 {[%clk 0:02:31]}  Ke5 {[%clk 0:01:06]} 19. f4+ {[%clk 0:02:23]} 1-0


[Site "https://www.chess.com"]

[Event "Titled Tuesday Blitz May 30 Early 2023"]
[White "Barbot, Pierre"]
[Black "Blokhin, Sofia"]
[WhiteFideId "663727"]
[BlackFideId "4508190"]
[WhiteElo "2431"]
[BlackElo "1994"]
[Result "0-1"]
[Round "09"]
[TimeControl "180+2"]
[Date "2023.05.30"]
[WhiteClock "0:00:03"]
[BlackClock "0:00:12"]

1. d4 {[%clk 0:03:00]}  d5 {[%clk 0:02:58]} 2. Nf3 {[%clk 0:03:01]}  e6 {[%clk 0:02:58]} 3. Bf4 {[%clk 0:03:01]}  Nf6 {[%clk 0:02:58]} 4. e3 {[%clk 0:03:00]}  Be7 {[%clk 0:02:58]} 5. Nbd2 {[%clk 0:02:58]}  O-O {[%clk 0:02:58]} 6. Bd3 {[%clk 0:02:57]}  b6 {[%clk 0:02:57]} 7. O-O {[%clk 0:02:53]}  Bb7 {[%clk 0:02:57]} 8. h3 {[%clk 0:02:51]}  Nbd7 {[%clk 0:02:57]} 9. Ne5 {[%clk 0:02:50]}  Ne4 {[%clk 0:02:55]} 10. c4 {[%clk 0:02:41]}  f5 {[%clk 0:02:52]} 11. Bh2 {[%clk 0:02:36]}  Ndf6 {[%clk 0:02:45]} 12. f3 {[%clk 0:02:25]}  Nxd2 {[%clk 0:02:44]} 13. Qxd2 {[%clk 0:02:26]}  c5 {[%clk 0:02:42]} 14. Kh1 {[%clk 0:02:14]}  cxd4 {[%clk 0:02:39]} 15. exd4 {[%clk 0:02:15]}  Nh5 {[%clk 0:02:32]} 16. b4 {[%clk 0:01:33]}  Bg5 {[%clk 0:02:09]} 17. Qe2 {[%clk 0:01:11]}  Bh4 {[%clk 0:01:56]} 18. c5 {[%clk 0:01:06]}  bxc5 {[%clk 0:01:51]} 19. bxc5 {[%clk 0:01:05]}  Bg3 {[%clk 0:01:50]} 20. c6 {[%clk 0:00:56]}  Bxh2 {[%clk 0:01:47]} 21. Kxh2 {[%clk 0:00:54]}  Bc8 {[%clk 0:01:20]} 22. f4 {[%clk 0:00:52]}  Qh4 {[%clk 0:01:15]} 23. Qf2 {[%clk 0:00:51]}  Qe7 {[%clk 0:01:08]} 24. Qf3 {[%clk 0:00:39]}  Nf6 {[%clk 0:01:06]} 25. Rab1 {[%clk 0:00:24]}  Ne4 {[%clk 0:01:05]} 26. Bxe4 {[%clk 0:00:25]}  dxe4 {[%clk 0:01:00]} 27. Qb3 {[%clk 0:00:22]}  Ba6 {[%clk 0:00:58]} 28. Rfc1 {[%clk 0:00:20]}  Rac8 {[%clk 0:00:44]} 29. Rc5 {[%clk 0:00:04]}  Qh4 {[%clk 0:00:44]} 30. g3 {[%clk 0:00:03]}  Qe7 {[%clk 0:00:43]} 31. Rbc1 {[%clk 0:00:03]}  Rc7 {[%clk 0:00:42]} 32. Kg2 {[%clk 0:00:02]}  g5 {[%clk 0:00:41]} 33. Qa3 {[%clk 0:00:02]}  gxf4 {[%clk 0:00:40]} 34. Qxa6 {[%clk 0:00:01]}  f3+ {[%clk 0:00:39]} 35. Kf2 {[%clk 0:00:01]}  f4 {[%clk 0:00:37]} 36. Qa5 {[%clk 0:00:01]}  fxg3+ {[%clk 0:00:35]} 37. Kxg3 {[%clk 0:00:02]}  Qg5+ {[%clk 0:00:34]} 38. Ng4 {[%clk 0:00:02]}  Qf4+ {[%clk 0:00:33]} 39. Kf2 {[%clk 0:00:02]}  Rg7 {[%clk 0:00:24]} 40. R1c4 {[%clk 0:00:01]}  Rxg4 {[%clk 0:00:21]} 41. hxg4 {[%clk 0:00:02]}  e3+ {[%clk 0:00:20]} 42. Kf1 {[%clk 0:00:01]}  e2+ {[%clk 0:00:19]} 43. Kf2 {[%clk 0:00:02]}  Qh2+ {[%clk 0:00:18]} 44. Ke3 {[%clk 0:00:02]}  Qg1+ {[%clk 0:00:16]} 45. Kd3 {[%clk 0:00:02]}  Qd1+ {[%clk 0:00:15]} 46. Ke3 {[%clk 0:00:01]}  e1=Q+ {[%clk 0:00:15]} 47. Qxe1 {[%clk 0:00:01]}  Qxe1+ {[%clk 0:00:15]} 48. Kd3 {[%clk 0:00:02]}  f2 {[%clk 0:00:14]} 49. c7 {[%clk 0:00:02]}  f1=Q+ {[%clk 0:00:14]} 50. Kc2 {[%clk 0:00:03]}  Qb1+ {[%clk 0:00:13]} 51. Kc3 {[%clk 0:00:03]}  Qfc1# {[%clk 0:00:12]} 0-1


[Site "https://www.chess.com"]

[Event "Titled Tuesday Blitz May 30 Early 2023"]
[White "Kuznetsov, Mikhail"]
[Black "Bashirli, Saadat"]
[WhiteFideId "4117190"]
[BlackFideId "13429990"]
[WhiteElo "1981"]
[BlackElo "1408"]
[Result "1-0"]
[Round "09"]
[TimeControl "180+2"]
[Date "2023.05.30"]
[WhiteClock "0:00:10"]
[BlackClock "0:00:08"]

1. d4 {[%clk 0:02:52]}  d5 {[%clk 0:02:59]} 2. Nf3 {[%clk 0:02:52]}  e6 {[%clk 0:02:58]} 3. c4 {[%clk 0:02:52]}  c6 {[%clk 0:02:58]} 4. e3 {[%clk 0:02:51]}  Nf6 {[%clk 0:02:57]} 5. Bd3 {[%clk 0:02:50]}  dxc4 {[%clk 0:02:57]} 6. Bxc4 {[%clk 0:02:50]}  b5 {[%clk 0:02:58]} 7. Be2 {[%clk 0:02:47]}  Nbd7 {[%clk 0:02:59]} 8. O-O {[%clk 0:02:45]}  Bd6 {[%clk 0:02:59]} 9. Nc3 {[%clk 0:02:44]}  Bb7 {[%clk 0:02:58]} 10. e4 {[%clk 0:02:43]}  e5 {[%clk 0:02:58]} 11. dxe5 {[%clk 0:02:38]}  Nxe5 {[%clk 0:02:59]} 12. Nxe5 {[%clk 0:02:37]}  Bxe5 {[%clk 0:03:00]} 13. f4 {[%clk 0:02:36]}  Qxd1 {[%clk 0:02:57]} 14. Rxd1 {[%clk 0:02:34]}  Bxc3 {[%clk 0:02:57]} 15. bxc3 {[%clk 0:02:34]}  Nxe4 {[%clk 0:02:56]} 16. Bf3 {[%clk 0:02:15]}  Nxc3 {[%clk 0:02:53]} 17. Re1+ {[%clk 0:02:15]}  Kd7 {[%clk 0:02:51]} 18. Bg4+ {[%clk 0:02:11]}  Kd8 {[%clk 0:02:43]} 19. Bb2 {[%clk 0:02:08]}  Nd5 {[%clk 0:02:40]} 20. Bf3 {[%clk 0:01:56]}  f6 {[%clk 0:02:36]} 21. a4 {[%clk 0:01:49]}  a6 {[%clk 0:02:34]} 22. Ba3 {[%clk 0:01:38]}  b4 {[%clk 0:02:01]} 23. Bxd5 {[%clk 0:01:36]}  bxa3 {[%clk 0:01:55]} 24. Bf3 {[%clk 0:01:33]}  Re8 {[%clk 0:01:53]} 25. Red1+ {[%clk 0:01:22]}  Kc7 {[%clk 0:01:52]} 26. Rxa3 {[%clk 0:01:23]}  Rad8 {[%clk 0:01:50]} 27. Rb1 {[%clk 0:01:22]}  Ba8 {[%clk 0:01:49]} 28. a5 {[%clk 0:01:22]}  Rd4 {[%clk 0:01:48]} 29. Rb6 {[%clk 0:01:17]}  Rd2 {[%clk 0:01:42]} 30. h4 {[%clk 0:01:13]}  c5 {[%clk 0:01:36]} 31. Rxa6 {[%clk 0:01:08]}  Bxf3 {[%clk 0:01:26]} 32. Rxf3 {[%clk 0:01:09]}  Re1+ {[%clk 0:01:20]} 33. Kh2 {[%clk 0:01:03]}  Kb7 {[%clk 0:01:18]} 34. Rb6+ {[%clk 0:01:01]}  Ka7 {[%clk 0:01:18]} 35. Rg3 {[%clk 0:00:59]}  Re7 {[%clk 0:01:16]} 36. Rc3 {[%clk 0:00:52]}  Rc7 {[%clk 0:01:14]} 37. Rc4 {[%clk 0:00:40]}  Ra2 {[%clk 0:01:07]} 38. Rb5 {[%clk 0:00:39]}  Rf2 {[%clk 0:01:04]} 39. Kg3 {[%clk 0:00:37]}  Rd2 {[%clk 0:00:50]} 40. Rbxc5 {[%clk 0:00:32]}  Rcd7 {[%clk 0:00:49]} 41. Rc7+ {[%clk 0:00:31]}  Ka6 {[%clk 0:00:49]} 42. Rxd7 {[%clk 0:00:30]}  Rxd7 {[%clk 0:00:50]} 43. Rc5 {[%clk 0:00:31]}  Rd3+ {[%clk 0:00:48]} 44. Kf2 {[%clk 0:00:28]}  Rd4 {[%clk 0:00:47]} 45. Ke3 {[%clk 0:00:27]}  Rd7 {[%clk 0:00:46]} 46. g4 {[%clk 0:00:24]}  Re7+ {[%clk 0:00:41]} 47. Kf3 {[%clk 0:00:20]}  Rd7 {[%clk 0:00:40]} 48. h5 {[%clk 0:00:19]}  Rb7 {[%clk 0:00:39]} 49. h6 {[%clk 0:00:16]}  gxh6 {[%clk 0:00:30]} 50. Rc6+ {[%clk 0:00:10]}  Kxa5 {[%clk 0:00:30]} 51. Rxf6 {[%clk 0:00:11]}  Kb5 {[%clk 0:00:16]} 52. Rxh6 {[%clk 0:00:10]}  Kc5 {[%clk 0:00:16]} 53. Re6 {[%clk 0:00:10]}  Kd5 {[%clk 0:00:16]} 54. f5 {[%clk 0:00:11]}  Rg7 {[%clk 0:00:16]} 55. Kf4 {[%clk 0:00:11]}  Rf7 {[%clk 0:00:15]} 56. g5 {[%clk 0:00:10]}  Rg7 {[%clk 0:00:14]} 57. Re1 {[%clk 0:00:10]}  Kd6 {[%clk 0:00:14]} 58. f6 {[%clk 0:00:09]}  Rf7 {[%clk 0:00:14]} 59. Kf5 {[%clk 0:00:09]}  Kd7 {[%clk 0:00:11]} 60. g6 {[%clk 0:00:07]}  hxg6+ {[%clk 0:00:11]} 61. Kxg6 {[%clk 0:00:08]}  Rf8 {[%clk 0:00:11]} 62. Kg7 {[%clk 0:00:08]}  Ra8 {[%clk 0:00:08]} 63. f7 {[%clk 0:00:09]}  Ra2 {[%clk 0:00:07]} 64. f8=Q {[%clk 0:00:09]}  Rg2+ {[%clk 0:00:08]} 65. Kh6 {[%clk 0:00:10]}  Rh2+ {[%clk 0:00:08]} 66. Kg5 {[%clk 0:00:10]}  Rg2+ {[%clk 0:00:09]} 67. Kh4 {[%clk 0:00:11]}  Rh2+ {[%clk 0:00:10]} 68. Kg3 {[%clk 0:00:12]}  Rg2+ {[%clk 0:00:10]} 69. Kxg2 {[%clk 0:00:11]}  Kc6 {[%clk 0:00:08]} 70. Qf5 {[%clk 0:00:10]} 1-0


[Site "https://www.chess.com"]

[Event "Titled Tuesday Blitz May 30 Early 2023"]
[White "Jegorovas, Aleksandras"]
[Black "KVAIDAN"]
[WhiteFideId "12801950"]
[WhiteElo "2247"]
[BlackElo "2309"]
[Result "1-0"]
[Round "09"]
[TimeControl "180+2"]
[Date "2023.05.30"]
[WhiteClock "0:01:19"]
[BlackClock "0:02:25"]

1. Nf3 {[%clk 0:02:57]}  f5 {[%clk 0:02:59]} 2. d4 {[%clk 0:02:55]}  e6 {[%clk 0:02:58]} 3. g3 {[%clk 0:02:55]}  Nf6 {[%clk 0:02:58]} 4. Bg2 {[%clk 0:02:56]}  Be7 {[%clk 0:02:59]} 5. O-O {[%clk 0:02:56]}  O-O {[%clk 0:02:59]} 6. c4 {[%clk 0:02:56]}  d6 {[%clk 0:03:00]} 7. Nc3 {[%clk 0:02:57]}  a5 {[%clk 0:02:59]} 8. Qc2 {[%clk 0:02:54]}  Nc6 {[%clk 0:02:57]} 9. a3 {[%clk 0:02:52]}  e5 {[%clk 0:02:56]} 10. d5 {[%clk 0:02:49]}  Nb8 {[%clk 0:02:53]} 11. Rb1 {[%clk 0:02:48]}  Na6 {[%clk 0:02:53]} 12. b4 {[%clk 0:02:44]}  axb4 {[%clk 0:02:53]} 13. axb4 {[%clk 0:02:43]}  Qe8 {[%clk 0:02:54]} 14. Ng5 {[%clk 0:02:30]}  Qh5 {[%clk 0:02:51]} 15. Ne6 {[%clk 0:02:26]}  Bxe6 {[%clk 0:02:51]} 16. dxe6 {[%clk 0:02:26]}  c6 {[%clk 0:02:50]} 17. b5 {[%clk 0:02:23]}  Nc5 {[%clk 0:02:49]} 18. bxc6 {[%clk 0:02:22]}  bxc6 {[%clk 0:02:49]} 19. Bxc6 {[%clk 0:02:22]}  Rac8 {[%clk 0:02:48]} 20. Bd5 {[%clk 0:02:16]}  Ng4 {[%clk 0:02:46]} 21. h4 {[%clk 0:02:11]}  Kh8 {[%clk 0:02:46]} 22. Kg2 {[%clk 0:02:05]}  f4 {[%clk 0:02:34]} 23. f3 {[%clk 0:01:42]}  fxg3 {[%clk 0:02:31]} 24. fxg4 {[%clk 0:01:36]}  Qxh4 {[%clk 0:02:30]} 25. Rh1 {[%clk 0:01:24]}  Rf2+ {[%clk 0:02:29]} 26. Kg1 {[%clk 0:01:24]}  Qxg4 {[%clk 0:02:25]} 27. Qxh7# {[%clk 0:01:19]} 1-0


[Site "https://www.chess.com"]

[Event "Titled Tuesday Blitz May 30 Early 2023"]
[White "Flis, Pawel"]
[Black "Ziatdinov, Raset"]
[WhiteFideId "1112864"]
[BlackFideId "2015323"]
[WhiteElo "1822"]
[BlackElo "2220"]
[Result "0-1"]
[Round "09"]
[TimeControl "180+2"]
[Date "2023.05.30"]
[WhiteClock "0:00:02"]
[BlackClock "0:01:02"]

1. e4 {[%clk 0:03:00]}  e6 {[%clk 0:02:58]} 2. d4 {[%clk 0:03:00]}  d5 {[%clk 0:02:57]} 3. Bd3 {[%clk 0:02:59]}  dxe4 {[%clk 0:02:57]} 4. Bxe4 {[%clk 0:02:59]}  c5 {[%clk 0:02:58]} 5. Ne2 {[%clk 0:02:54]}  Nf6 {[%clk 0:02:56]} 6. Bf3 {[%clk 0:02:53]}  cxd4 {[%clk 0:02:52]} 7. Qxd4 {[%clk 0:02:53]}  Bd6 {[%clk 0:02:46]} 8. Bf4 {[%clk 0:02:41]}  Qa5+ {[%clk 0:02:31]} 9. Nbc3 {[%clk 0:02:25]}  Bxf4 {[%clk 0:02:26]} 10. Qxf4 {[%clk 0:02:24]}  O-O {[%clk 0:02:26]} 11. O-O {[%clk 0:02:23]}  Nc6 {[%clk 0:02:25]} 12. Rad1 {[%clk 0:02:17]}  e5 {[%clk 0:02:09]} 13. Qg5 {[%clk 0:01:56]}  Be6 {[%clk 0:02:07]} 14. Ng3 {[%clk 0:01:40]}  h6 {[%clk 0:02:02]} 15. Qh4 {[%clk 0:01:38]}  Nd4 {[%clk 0:01:53]} 16. Be4 {[%clk 0:01:24]}  Nxe4 {[%clk 0:01:47]} 17. Ncxe4 {[%clk 0:01:25]}  f5 {[%clk 0:01:40]} 18. Nc3 {[%clk 0:01:15]}  Nxc2 {[%clk 0:01:23]} 19. Qe7 {[%clk 0:01:04]}  Rae8 {[%clk 0:01:20]} 20. Qxb7 {[%clk 0:01:03]}  Nd4 {[%clk 0:01:15]} 21. Nh5 {[%clk 0:00:44]}  Rf7 {[%clk 0:01:11]} 22. b4 {[%clk 0:00:17]}  Qa3 {[%clk 0:01:03]} 23. Nb1 {[%clk 0:00:15]}  Qxa2 {[%clk 0:00:56]} 24. Rxd4 {[%clk 0:00:13]}  Rxb7 {[%clk 0:00:53]} 25. Rd6 {[%clk 0:00:13]}  Bf7 {[%clk 0:00:51]} 26. Rfd1 {[%clk 0:00:12]}  Rxb4 {[%clk 0:00:50]} 27. Ng3 {[%clk 0:00:11]}  f4 {[%clk 0:00:50]} 28. Nf5 {[%clk 0:00:10]}  Rxb1 {[%clk 0:00:49]} 29. h4 {[%clk 0:00:09]}  Rxd1+ {[%clk 0:00:48]} 30. Rxd1 {[%clk 0:00:10]}  Qc2 {[%clk 0:00:49]} 31. Rf1 {[%clk 0:00:10]}  Qxf5 {[%clk 0:00:50]} 32. g4 {[%clk 0:00:09]}  a5 {[%clk 0:00:50]} 33. gxf5 {[%clk 0:00:09]}  Ra8 {[%clk 0:00:49]} 34. Ra1 {[%clk 0:00:10]}  a4 {[%clk 0:00:49]} 35. Ra3 {[%clk 0:00:10]}  Bb3 {[%clk 0:00:48]} 36. f3 {[%clk 0:00:09]}  Rc8 {[%clk 0:00:49]} 37. Kf2 {[%clk 0:00:09]}  Rc2+ {[%clk 0:00:50]} 38. Ke1 {[%clk 0:00:10]}  Ra2 {[%clk 0:00:51]} 39. Rxa2 {[%clk 0:00:08]}  Bxa2 {[%clk 0:00:51]} 40. Kd2 {[%clk 0:00:09]}  Bd5 {[%clk 0:00:52]} 41. Kc3 {[%clk 0:00:09]}  Bxf3 {[%clk 0:00:53]} 42. Kb4 {[%clk 0:00:09]}  Bc6 {[%clk 0:00:53]} 43. h5 {[%clk 0:00:08]}  f3 {[%clk 0:00:54]} 44. Kc3 {[%clk 0:00:08]}  f2 {[%clk 0:00:55]} 45. Kd2 {[%clk 0:00:09]}  f1=Q {[%clk 0:00:56]} 46. Kc3 {[%clk 0:00:09]}  Qb5 {[%clk 0:00:57]} 47. Kd2 {[%clk 0:00:09]}  a3 {[%clk 0:00:58]} 48. Ke3 {[%clk 0:00:10]}  a2 {[%clk 0:00:59]} 49. Kf2 {[%clk 0:00:09]}  a1=Q {[%clk 0:01:00]} 50. Kg3 {[%clk 0:00:10]}  Qd4 {[%clk 0:01:00]} 51. Kh2 {[%clk 0:00:08]}  Qb3 {[%clk 0:01:01]} 52. f6 {[%clk 0:00:04]}  Qd2+ {[%clk 0:01:01]} 53. Kg1 {[%clk 0:00:02]}  Qb1# {[%clk 0:01:02]} 0-1


[Site "https://www.chess.com"]